[Event "44th Chess Olympiad Open 2022"]
[Site "Chennai"]
[Date "2022.08.02"]
[Round "5.11"]
[White "Puranik, Abhimanyu"]
[Black "Lopez Silva, Hugo"]
[Result "1-0"]
[WhiteElo "2612"]
[BlackElo "2403"]
[Annotator "TA"]
[PlyCount "81"]
[EventDate "2022.??.??"]
[TimeControl "60"]

{[%evp 9,81,38,38,29,52,64,41,39,57,26,34,-24,31,24,25,21,31,27,41,43,44,38,38,
38,42,33,38,36,65,56,104,110,108,102,102,109,105,110,100,98,122,112,135,85,85,
84,91,93,82,67,100,108,192,181,266,253,246,223,388,372,384,376,416,415,406,381,
500,523,537,504,508,509,465,390]} 1. e4 {[%emt 0:00:06]} e5 {[%emt 0:00:29]} 2.
Nf3 {[%emt 0:00:08]} Nc6 {[%emt 0:00:05]} 3. Bb5 {[%emt 0:00:24]} a6 {[%emt 0:
00:00]} 4. Ba4 {[%emt 0:00:11]} Nge7 {[%emt 0:01:37]} 5. c3 {[%emt 0:01:15]} g6
{[%emt 0:01:23]} 6. d4 {[%emt 0:01:28] C70: Ruy Lopez: 3...a6 4 Ba4, Norwegian
and Delayed Schliemann.} exd4 {[%emt 0:01:02]} 7. cxd4 {[%emt 0:00:06]} b5 {
[%emt 0:00:32]} 8. Bc2 {[%emt 0:01:37] White is slightly better.} d5 {[%emt 0:
00:00]} 9. Nc3 {[%emt 0:09:25] And now Bg5 would win.} Bg7 {[%emt 0:15:14]} 10.
O-O {[%emt 0:00:47]} (10. exd5 $14 Nb4 11. Bb3) 10... O-O {[%emt 0:17:48]} ({
Better is} 10... Bg4 $1 $11) 11. Bg5 $14 {[%emt 0:00:07] Black must now
prevent Nxd5.} h6 {[%emt 0:13:49]} 12. Bxe7 {[%emt 0:00:57]} Nxe7 {[%emt 0:00:
00]} 13. e5 {[%emt 0:00:07]} Bg4 {[%emt 0:09:34]} 14. h3 $36 {[%emt 0:00:11]
White has good play.} Bxf3 {[%emt 0:00:39]} 15. Qxf3 {[%emt 0:00:00]} c5 {
[%emt 0:00:04]} 16. dxc5 {[%emt 0:00:05]} Qc7 {[%emt 0:07:20]} 17. Rfe1 {
[%emt 0:00:20]} Qxc5 {[%emt 0:00:17] Hoping for ...b4.} 18. Bb3 {[%emt 0:00:00]
[#]} Rad8 $146 {[%emt 0:09:19]} ({Predecessor:} 18... d4 19. Nd5 Nxd5 20. Rac1
Qb4 21. Qxd5 Kh8 22. Qe4 Rae8 23. f4 Re7 24. Red1 Rd8 {1-0 (44) Grandelius,N 
(2666)-Nihal,S (2652) Malmo 2021}) 19. Rac1 $1 {[%emt 0:03:22][%cal Yc3d5]
aiming for Nxd5!} Qb4 {[%emt 0:05:21]} (19... Qd4 $14) 20. Nxd5 $16 {[%emt 0:
07:49]} ({But not} 20. Bxd5 $6 Nxd5 21. Nxd5 Qxb2 $11) 20... Nxd5 {[%emt 0:01:
39]} 21. Bxd5 {[%emt 0:00:59]} Qxb2 {[%emt 0:05:02]} 22. Rc7 {[%emt 0:12:41]
[%cal Rd5f7]} Kh8 {[%emt 0:01:44]} 23. Bxf7 {[%emt 0:03:37] White is much more
active.} ({Don't play} 23. Rxf7 Qd2 24. Rxf8+ Rxf8 $14) 23... Bxe5 {[%emt 0:01:
15] [#]} 24. Qe3 $1 {[%emt 0:00:43][%cal Re3h6]} Bg7 {[%emt 0:00:23]} (24...
Kg7 25. Qb6) 25. Bxg6 {[%emt 0:00:08] Strongly threatening Bc2.} Qd4 {[%emt 0:
04:49] [#]} 26. Bc2 {[%emt 0:11:13]} ({White should try} 26. Qg3 $1 {Threatens
to win with Ree7.} Rd7 27. Rxd7 Qxd7 28. Be4) 26... Qxe3 {[%emt 0:00:33]} 27.
Rxe3 {[%emt 0:00:07]} Rc8 {[%emt 0:00:22] [#]} 28. Rxc8 {[%emt 0:00:48]} Rxc8 {
[%emt 0:00:00] Endgame KRB-KRB} 29. Bd3 {[%emt 0:02:43]} Rd8 {[%emt 0:01:04]}
30. Kf1 {[%emt 0:00:44]} Bd4 {[%emt 0:00:22]} (30... Kg8 $16) 31. Re6 $1 $18 {
[%emt 0:00:18][%csl Ya6,Yh6]} Bc5 {[%emt 0:00:41]} (31... h5 {might work
better.} 32. f3 (32. Rxa6 Bxf2 33. Ke2 Bd4 $18) 32... Bc5) 32. Rxh6+ {[%emt 0:
03:22]} Kg7 {[%emt 0:00:01]} 33. Rc6 {[%emt 0:02:08]} Rxd3 $2 {[%emt 0:00:44]}
(33... Be7 {keeps fighting.}) 34. Rxc5 {[%emt 0:00:25] KR-KR} Rd2 {[%emt 0:00:
29]} 35. a3 {[%emt 0:00:35][%cal Ya2a3,Ya3a4]} Rd3 {[%emt 0:00:15]} 36. a4 {
[%emt 0:00:34]} b4 {[%emt 0:01:01]} 37. Ke2 {[%emt 0:00:44]} Ra3 {[%emt 0:00:
31]} 38. Ra5 {[%emt 0:00:00] White is clearly winning.} Ra2+ {[%emt 0:00:22]}
39. Kf3 {[%emt 0:00:13]} Ra3+ {[%emt 0:00:36]} 40. Kg4 {[%emt 0:00:45]} Ra2 {
[%emt 0:00:32]} 41. Kg3 {[%emt 0:33:03] Weighted Error Value: White=0.07 
(flawless) /Black=0.20 (precise)} 1-0

[Event "44th Chess Olympiad Open 2022"]
[Site "Chennai"]
[Date "2022.08.02"]
[Round "5.11"]
[White "Salinas Herrera, Pablo"]
[Black "Karthikeyan, Murali"]
[Result "1-0"]
[WhiteElo "2526"]
[BlackElo "2613"]
[Annotator "TA"]
[PlyCount "73"]
[EventDate "2022.??.??"]
[TimeControl "60"]

{[%evp 13,73,20,23,18,16,8,30,-7,8,6,3,19,27,23,46,38,43,50,44,42,71,77,107,88,
106,89,98,103,78,67,72,74,71,48,130,112,141,135,172,187,241,250,242,239,239,
239,239,239,239,239,239,239,530,517,550,550,2306,2241,1906,1661,1260,802]} 1.
e4 {[%emt 0:00:02]} c5 {[%emt 0:00:10]} 2. Nf3 {[%emt 0:00:06]} Nc6 {[%emt 0:
00:00]} 3. Bb5 {[%emt 0:00:09]} e6 {[%emt 0:00:07]} 4. O-O {[%emt 0:01:05]}
Nge7 {[%emt 0:00:05]} 5. Re1 {[%emt 0:01:54]} Nd4 {[%emt 0:03:03]} 6. Nxd4 {
[%emt 0:05:12]} cxd4 {[%emt 0:00:12]} 7. c3 {[%emt 0:00:04]} a6 {[%emt 0:01:37]
} 8. Bf1 {[%emt 0:00:06] B30: Sicilian: 2...Nc6 3 Bb5, lines without ...g6.}
Nc6 {[%emt 0:00:16]} 9. b4 $1 {[%emt 0:07:56] Against Bc5 outshines the older
9.d3.} Bd6 {[%emt 0:14:50]} 10. Na3 {[%emt 0:18:52] White has an edge.} (10.
Bb2 $5 {[%cal Rc3d4]}) 10... O-O {[%emt 0:08:00] [#]} (10... Qh4 11. g3 Qf6 12.
Bb2 $14) 11. b5 $146 {[%emt 0:06:25]} ({Predecessor:} 11. Nc2 dxc3 12. dxc3 Qc7
13. g3 b6 14. Be3 Be7 15. f4 Bb7 16. Rc1 d6 17. Bf2 {0-1 (44) Dominguez Perez,
L (2756)-Praggnanandhaa,R (2619) Chess.com INT 2022}) 11... axb5 {[%emt 0:01:
28]} (11... Qh4 12. g3 Qe7 13. Nc2 (13. bxc6 Bxa3 14. cxb7 Bxb7 $16) 13... axb5
14. cxd4 $16) 12. Nxb5 {[%emt 0:00:05]} Be5 {[%emt 0:00:00]} 13. Bb2 {[%emt 0:
10:46][%cal Rc3d4]} Qf6 {[%emt 0:09:56]} (13... Qh4 $2 14. g3 Qf6 15. f4 $16)
14. g3 {[%emt 0:01:46]} dxc3 {[%emt 0:02:31]} 15. dxc3 {[%emt 0:00:05]} g5 {
[%emt 0:19:47]} 16. a4 {[%emt 0:03:07]} Rd8 {[%emt 0:07:50]} 17. Bc1 {[%emt 0:
04:38]} Kh8 {[%emt 0:01:16]} 18. Nd6 {[%emt 0:01:06][%cal Yc1g5] Black must
now prevent Bxg5!} Rg8 {[%emt 0:10:23]} 19. Ra2 {[%emt 0:00:00]} b6 {[%emt 0:
01:59]} 20. Re3 {[%emt 0:03:15][%cal Ye1e3,Ye3d3,Yd3d7,Yd7d6] Strongly
threatening Rf3.} Qg7 {[%emt 0:03:05]} 21. Nxc8 {[%emt 0:00:00] White is much
more active.} Raxc8 {[%emt 0:00:29]} 22. Rd3 {[%emt 0:00:10]} (22. Qxd7 $6 Bf4
$1 $11) 22... Bf6 {[%emt 0:02:02]} 23. Rxd7 {[%emt 0:00:57]} Bxc3 {[%emt 0:01:
21]} (23... Ne5 $14) 24. Be3 $16 {[%emt 0:00:17]} Ne5 {[%emt 0:01:47]} 25. Rd6
{[%emt 0:00:06]} Ba5 {[%emt 0:02:37]} 26. Be2 {[%emt 0:00:00]} (26. Bxb6 $6
Bxb6 27. Rxb6 g4 $16) 26... Qg6 {[%emt 0:03:33]} (26... g4 $142 27. Rc2 (27.
Bxb6 Bxb6 28. Rxb6 Qh6 $16) 27... h6 28. Bxb6 Rxc2 29. Qxc2 Bxb6 30. Rxb6 Ra8)
27. Rc2 $18 {[%emt 0:03:56]} Qxe4 {[%emt 0:00:38]} 28. Rxc8 {[%emt 0:02:21]}
Rxc8 {[%emt 0:00:02]} 29. Rd8+ {[%emt 0:00:33]} ({Worse is} 29. Bxb6 Bxb6 30.
Rxb6 Rc2 31. Qd8+ Kg7 32. Qxg5+ Ng6 $11) ({Resist} 29. Bxg5 Kg7) 29... Rxd8 {
[%emt 0:00:01]} 30. Qxd8+ {[%emt 0:00:08]} Kg7 {[%emt 0:00:02]} 31. Qxg5+ {
[%emt 0:00:08]} Ng6 {[%emt 0:00:27] [#]} 32. h4 $1 {[%emt 0:01:17][%cal Yh2h4,
Yh4h5] Threatens to win with h5. The board is on fire.} ({And not} 32. f3 Qxa4
33. h4 Qa1+ 34. Bf1 Qe5 $11) 32... Qe5 $2 {[%emt 0:01:24]} (32... Bc3 {was
worth a try.} 33. h5 Qxa4 34. Bxb6 Qa1+ 35. Kg2 Bf6) 33. Qd8 {[%emt 0:00:11]
White is clearly winning.} Qa1+ {[%emt 0:00:59]} 34. Kh2 {[%emt 0:00:15] h5 is
the strong threat.} Qa2 {[%emt 0:00:36]} 35. h5 {[%emt 0:00:00][%csl Ge3][%cal
Rh5h6]} h6 {[%emt 0:00:16]} 36. Qd4+ {[%emt 0:00:56]} e5 {[%emt 0:00:13]} 37.
Qg4 {[%emt 0:00:03] Weighted Error Value: White=0.03 (flawless) /Black=0.28 
(precise)} 1-0

[Event "44th Chess Olympiad Open 2022"]
[Site "Chennai"]
[Date "2022.08.02"]
[Round "5.12"]
[White "Saric, Ivan"]
[Black "Gretarsson, Hjorvar Steinn"]
[Result "1-0"]
[WhiteElo "2680"]
[BlackElo "2563"]
[Annotator "TA"]
[PlyCount "75"]
[EventDate "2022.??.??"]
[TimeControl "60"]

{[%evp 11,75,0,14,0,4,0,-3,0,4,0,0,-12,24,41,46,39,46,41,34,4,29,20,70,60,77,
74,199,106,137,128,116,117,141,107,182,168,168,164,265,273,272,229,233,229,210,
197,344,338,300,94,572,547,546,568,1060,947,955,955,938,937,904,903,5215,2103,
2529,2031]} 1. e4 {[%emt 0:00:01]} c5 {[%emt 0:00:05]} 2. Nf3 {[%emt 0:00:04]}
d6 {[%emt 0:00:04]} 3. d4 {[%emt 0:00:20]} cxd4 {[%emt 0:00:06]} 4. Nxd4 {
[%emt 0:00:05]} Nf6 {[%emt 0:00:04]} 5. Nc3 {[%emt 0:00:06]} a6 {[%emt 0:00:03]
} 6. h3 {[%emt 0:00:45]} e5 {[%emt 0:00:10]} 7. Nf3 {[%emt 0:00:22] B90:
Sicilian Najdorf: Unusual White 6th moves, 6 Be3 Ng4 and 6 Be3 e5.} Be7 {
[%emt 0:03:21]} 8. g4 {[%emt 0:00:26]} h6 {[%emt 0:02:28]} 9. Rg1 {[%emt 0:00:
00] The position is equal.} b5 {[%emt 0:12:41]} 10. g5 {[%emt 0:00:24]} hxg5 {
[%emt 0:00:40]} 11. Nxg5 {[%emt 0:00:15]} Qc7 {[%emt 0:17:38]} 12. a4 {[%emt 0:
00:00]} b4 {[%emt 0:00:56]} 13. Nd5 {[%emt 0:01:29]} Nxd5 {[%emt 0:00:28]} 14.
Qxd5 {[%emt 0:02:30]} Bxg5 {[%emt 0:03:51]} 15. Rxg5 {[%emt 0:01:48]} (15. Qxa8
$2 Bb7 16. Qxb7 (16. Qa7 $2 Nc6 $19) 16... Qxb7 $19) (15. Bxg5 $5 {[%cal Rd5a8]
} Bb7 16. Qd3 $14) 15... Bb7 {[%emt 0:11:52] [#]} 16. Qb3 $146 {[%emt 0:05:50]}
({Predecessor:} 16. Qd3 f6 17. Rg6 Nc6 18. Be3 O-O-O 19. O-O-O Qf7 20. Rg3 Rd7
21. h4 Kc7 22. Bh3 Rdd8 23. Rdg1 Qa2 24. Rxg7+ Kb8 25. Rxb7+ Kxb7 26. Rg7+ {
1-0 (26) Ponkratov,P (2641)-Wojtaszek,R (2686) Warsaw 2021}) 16... Nc6 {
[%emt 0:07:00]} (16... Bxe4 $11 17. Rxg7 (17. Qxb4 f5 $11) 17... Nc6) 17. Be3
$14 {[%emt 0:00:12]} (17. Rxg7 $2 Nd4 18. Qc4 Nxc2+ 19. Kd1 Qxc4 20. Bxc4 Nxa1
$19) 17... g6 {[%emt 0:01:25]} 18. O-O-O {[%emt 0:06:11] White is more active.}
Bc8 {[%emt 0:15:37]} (18... Rc8 $16) 19. Rg3 {[%emt 0:09:19]} (19. Qd5 $18)
19... Be6 $16 {[%emt 0:01:00]} 20. Qd3 {[%emt 0:00:05]} Ke7 {[%emt 0:01:15]}
21. b3 {[%emt 0:06:09]} Rac8 {[%emt 0:03:15][%cal Yc6d4]} 22. Kb1 {[%emt 0:00:
00]} Rhd8 {[%emt 0:02:14]} (22... Nd4 $16) 23. Qd2 $18 {[%emt 0:01:19]} d5 {
[%emt 0:08:40]} 24. Bg5+ {[%emt 0:05:15]} Ke8 {[%emt 0:00:25]} (24... f6 $142)
25. Bxd8 {[%emt 0:00:28]} (25. Bxa6 $6 dxe4 26. Bxd8 Rxd8 $16) 25... Rxd8 {
[%emt 0:00:05]} 26. Qe1 {[%emt 0:13:29]} (26. exd5 $6 Rxd5 27. Qc1 Rxd1 28.
Qxd1 a5 $18) (26. Bxa6 $6 dxe4 27. Qe1 Rxd1+ 28. Qxd1 Nd4 $16) 26... Nd4 {
[%emt 0:01:23]} 27. Bd3 {[%emt 0:02:06]} dxe4 {[%emt 0:00:28]} 28. Bxe4 {
[%emt 0:01:08]} (28. Qxe4 $6 Nxc2 29. Rc1 (29. Bxc2 $2 Rxd1+ 30. Bxd1 Bf5 $19)
29... Bf5 30. Rxc2 Qd6 31. Qc6+ Qxc6 32. Rxc6 Bxd3+ 33. Kc1 Rd5 $14) 28... f5 {
[%emt 0:01:43]} (28... Qc5 $142 29. Bd3 Rc8) 29. Bd3 {[%emt 0:00:09][%cal
Ye4d3,Yd3a6,Ya6c4]} Kf7 {[%emt 0:01:30] [#]} 30. Qg1 $2 {[%emt 0:00:00]} ({
Inferior is} 30. Qxb4 Rb8 31. Qd2 Nxb3 $11) (30. Qd2 $1 $18 {[%cal Rd2h6]})
30... e4 $2 {[%emt 0:02:56] [#]} (30... Qc3 $16 {is a better chance.} 31. Bxf5
(31. Rxg6 {gets mated.} Nxb3 32. Rg7+ Kf8) 31... Bxf5 32. Rxc3 bxc3) 31. Rxg6
$1 {[%emt 0:00:18] Intending Rg7+ and mate. White is clearly winning.} Qe5 {
[%emt 0:00:43] Inhibits Rg7+.} (31... Nf3 32. Rg7+) 32. Bxa6 {[%emt 0:03:51]}
Rh8 {[%emt 0:01:30]} 33. f4 {[%emt 0:02:34]} exf3 {[%emt 0:00:04]} 34. Rxe6 {
[%emt 0:05:36]} Nxe6 {[%emt 0:00:13]} 35. Bc4 {[%emt 0:00:43] Re1 is the
strong threat.} Rg8 {[%emt 0:01:15]} 36. Qf2 {[%emt 0:01:29] And now Re1 would
win.} Qc3 {[%emt 0:00:48]} 37. Rd3 {[%emt 0:00:00]} (37. Qa7+ $142 Kf6 38. Qh7)
37... Qe5 {[%emt 0:00:31]} 38. Rxf3 {[%emt 0:03:35] Weighted Error Value:
White=0.20 (precise) /Black=0.44} 1-0

[Event "44th Chess Olympiad Open 2022"]
[Site "Chennai"]
[Date "2022.08.02"]
[Round "5.12"]
[White "Kozul, Zdenko"]
[Black "Kjartansson, Gudmundur"]
[Result "1/2-1/2"]
[WhiteElo "2602"]
[BlackElo "2448"]
[Annotator "TA"]
[PlyCount "156"]
[EventDate "2022.??.??"]
[TimeControl "60"]

{[%evp 17,156,16,25,15,18,14,15,25,16,0,0,0,2,-2,0,0,0,-16,-18,-9,0,0,0,0,0,
-48,0,0,0,0,0,0,0,0,0,0,0,0,0,0,0,0,0,0,0,0,0,0,0,0,0,0,0,0,0,0,0,0,0,0,0,0,0,
0,0,0,0,0,0,0,0,0,0,0,0,0,0,0,0,0,0,0,0,0,0,0,0,0,0,0,0,0,0,0,19,0,0,0,0,0,0,0,
0,0,0,0,0,0,0,0,0,0,0,0,0,0,0,0,0,0,0,0,0,0,0,0,0,0,0,0,0,0,0,0,0,0,0,0,0,0,0]
} 1. d4 {[%emt 0:00:10]} d5 {[%emt 0:00:07]} 2. c4 {[%emt 0:00:18]} e6 {
[%emt 0:00:10]} 3. Nf3 {[%emt 0:01:05]} Nf6 {[%emt 0:00:07]} 4. Bg5 {[%emt 0:
00:00]} h6 {[%emt 0:02:57]} 5. Bxf6 {[%emt 0:02:52]} Qxf6 {[%emt 0:00:05]} 6.
e3 {[%emt 0:00:47]} Nd7 {[%emt 0:09:37]} 7. Nc3 {[%emt 0:03:12]} c6 {[%emt 0:
00:00]} 8. Be2 {[%emt 0:04:48]} dxc4 {[%emt 0:01:11]} 9. Bxc4 {[%emt 0:00:15]}
Bd6 {[%emt 0:00:37]} 10. O-O {[%emt 0:01:29] D43: Semi-Slav: 5 Bg5 h6.} O-O {
[%emt 0:00:17]} 11. Ne4 {[%emt 0:14:50][%csl Yd6,Yf6]} Qe7 {[%emt 0:00:11]} 12.
Nxd6 {[%emt 0:00:06]} Qxd6 {[%emt 0:00:03]} 13. Qc2 {[%emt 0:00:04]} b6 {
[%emt 0:00:58]} 14. Rfd1 {[%emt 0:06:04]} Bb7 {[%emt 0:00:20] [#]} 15. a4 $146
{[%emt 0:14:04][%cal Ya2a4,Ya4a5,Ya5a6]} ({Predecessor:} 15. Rac1 Qe7 16. Qe2
a6 17. a3 Rfc8 18. b4 a5 19. Rb1 axb4 20. axb4 Rc7 21. Bd3 {½-½ (30) Lenic,L
(2644)-Michalik,P (2578) Austria 2019}) 15... Rfd8 {[%emt 0:09:30]} 16. a5 {
[%emt 0:07:06]} c5 {[%emt 0:10:26]} 17. a6 {[%emt 0:00:17]} Bxf3 {[%emt 0:00:
00]} 18. gxf3 {[%emt 0:00:07]} cxd4 {[%emt 0:10:53]} 19. Rxd4 {[%emt 0:00:00]}
Qc7 {[%emt 0:02:47]} 20. Rc1 {[%emt 0:04:50]} Rac8 {[%emt 0:04:12]} 21. Bd3 {
[%emt 0:04:32]} (21. f4 $11) 21... Qb8 {[%emt 0:02:06]} (21... Qxc2 $15 22.
Rxc2 Rxc2 23. Bxc2 Kf8) 22. Rc4 $11 {[%emt 0:01:23] The position is equal.}
Rxc4 {[%emt 0:00:58]} 23. Bxc4 {[%emt 0:00:09]} Rc8 {[%emt 0:01:04] [#]
Threatens to win with ...Ne5.} 24. Qd1 {[%emt 0:00:29]} Ne5 {[%emt 0:06:21]}
25. Be2 {[%emt 0:01:05]} Rxc1 {[%emt 0:00:18]} 26. Qxc1 {[%emt 0:00:09]
Endgame KQB-KQN} Qd8 {[%emt 0:01:18]} 27. f4 {[%emt 0:07:30]} Ng6 {[%emt 0:01:
55][%cal Ye5g6,Yg6h4,Yh4f5]} 28. Kf1 {[%emt 0:07:08]} Nh4 {[%emt 0:03:37]} 29.
Ke1 {[%emt 0:02:09]} g5 {[%emt 0:04:29]} 30. fxg5 {[%emt 0:00:00]} hxg5 {
[%emt 0:00:49]} 31. Qc6 {[%emt 0:00:41]} Kf8 {[%emt 0:10:19]} 32. Qb7 {[%emt 0:
02:08]} Qe7 {[%emt 0:00:48]} 33. Kd1 {[%emt 0:02:18]} Nf5 {[%emt 0:00:50]} 34.
Bd3 {[%emt 0:00:32]} Nd6 {[%emt 0:00:41]} 35. Qc6 {[%emt 0:00:00]} Qd8 {
[%emt 0:01:55]} 36. Ke2 {[%emt 0:00:14]} Ke7 {[%emt 0:00:59]} 37. Qg2 {[%emt 0:
01:51]} Kd7 {[%emt 0:02:04]} 38. f4 {[%emt 0:01:45]} gxf4 {[%emt 0:00:40]} 39.
exf4 {[%emt 0:00:05]} Qh8 {[%emt 0:00:20]} 40. Ke3 {[%emt 0:00:24]} e5 {
[%emt 0:05:03]} 41. Qg4+ {[%emt 0:38:01]} Kc7 {[%emt 0:00:00]} 42. h4 {[%emt 0:
00:37]} e4 {[%emt 0:00:00]} 43. Bxe4 {[%emt 0:00:00]} Qxb2 {[%emt 0:00:00]} 44.
Bd3 {[%emt 0:00:00]} Qc3 {[%emt 0:00:00]} 45. Ke2 {[%emt 0:00:00] Active
counter play!} Qb2+ {[%emt 0:00:00]} 46. Ke3 {[%emt 0:00:00]} b5 {[%emt 0:00:
00]} 47. Qe2 {[%emt 0:00:00]} Qc1+ {[%emt 0:00:22]} 48. Kf3 {[%emt 0:00:00]}
Qh1+ {[%emt 0:00:29]} 49. Kg3 {[%emt 0:00:00] [#] aiming for Qe7+.} Kb6 {
[%emt 0:02:17]} 50. Qg2 {[%emt 0:00:00]} Qa1 {[%emt 0:02:23]} (50... Qd1 $5 {
[%cal Rd1d3]} 51. Qf3 (51. Qd5 Qg1+ 52. Kh3 Qe3+ 53. Kg4 f5+ 54. Bxf5 Qe2+ 55.
Kg5 Qe7+ 56. Kh5 Nxf5 $11) 51... Qe1+ 52. Kh3 Qe6+ 53. f5 Qe1 $11) 51. Qd5 {
[%emt 0:00:00]} Qg1+ {[%emt 0:00:34]} 52. Kh3 {[%emt 0:00:00]} Qe3+ {[%emt 0:
00:24]} 53. Kg4 {[%emt 0:00:00]} Qg1+ {[%emt 0:00:10]} 54. Kh5 {[%emt 0:00:00]}
Kc7 {[%emt 0:00:24]} (54... Qc5 $2 55. Qxc5+ Kxc5 56. Kg5 $18) 55. Qe5 {
[%emt 0:00:26]} f6 {[%emt 0:00:57]} 56. Qe7+ {[%emt 0:02:50]} Kc6 {[%emt 0:00:
03]} 57. Be4+ {[%emt 0:01:28]} (57. Qe6 Qd4 58. Qh3 (58. Bf5 Qxf4 59. Qd7+ Kb6
$17) 58... Qxf4 $17) 57... Nxe4 {[%emt 0:00:17]} 58. Qxe4+ {[%emt 0:00:05]
KQ-KQ} Kb6 {[%emt 0:01:18]} ({But not} 58... Kd6 59. f5 $16) 59. Qe6+ {[%emt 0:
00:38]} Ka5 {[%emt 0:00:09]} 60. Qxf6 {[%emt 0:00:28] Strongly threatening f5.}
b4 {[%emt 0:00:10]} 61. f5 {[%emt 0:00:17]} b3 {[%emt 0:01:08]} 62. Qc3+ {
[%emt 0:00:10]} Ka4 {[%emt 0:00:04]} 63. f6 {[%emt 0:00:42]} Qf2 {[%emt 0:00:
58]} 64. Qc6+ {[%emt 0:03:04]} Ka3 {[%emt 0:00:15]} 65. Qd6+ {[%emt 0:00:05]}
Ka2 {[%emt 0:00:44] And now ...Qf5+ would win.} 66. Qe6 {[%emt 0:00:07]
Against Qf5+} Qf3+ {[%emt 0:00:31]} 67. Kg5 {[%emt 0:00:21] Black must now
prevent f7.} Qg3+ {[%emt 0:00:21]} 68. Kh5 {[%emt 0:00:55]} Qf3+ {[%emt 0:00:
02]} 69. Kh6 {[%emt 0:00:51] f7 is the strong threat.} Qf4+ {[%emt 0:00:37]}
70. Kg7 {[%emt 0:00:49]} Qg3+ {[%emt 0:00:18]} 71. Kf8 {[%emt 0:00:05]} Qxh4 {
[%emt 0:00:05]} 72. f7 {[%emt 0:00:08]} Qd8+ {[%emt 0:00:00]} 73. Qe8 {[%emt 0:
02:01]} Qh4 {[%emt 0:00:22]} 74. Qe6 {[%emt 0:01:34]} Qd8+ {[%emt 0:00:09]} 75.
Kg7 {[%emt 0:00:21]} Qg5+ {[%emt 0:00:09]} 76. Kh7 {[%emt 0:00:05]} Qh5+ {
[%emt 0:00:15]} 77. Kg7 {[%emt 0:00:05]} Qg5+ {[%emt 0:00:00]} 78. Kh7 {
[%emt 0:00:07]} Qh5+ {[%emt 0:00:02] An even fight not without its subleties.
Weighted Error Value: White=0.02 (flawless) /Black=0.01 (flawless)} 1/2-1/2

[Event "44th Chess Olympiad Open 2022"]
[Site "Chennai"]
[Date "2022.08.02"]
[Round "5.12"]
[White "Stefansson, Hannes"]
[Black "Brkic, Ante"]
[Result "1/2-1/2"]
[WhiteElo "2541"]
[BlackElo "2611"]
[Annotator "TA"]
[PlyCount "75"]
[EventDate "2022.??.??"]
[TimeControl "60"]

{[%evp 9,75,16,14,0,12,2,3,0,11,4,4,0,0,0,0,0,0,0,0,0,0,0,0,0,0,0,12,10,20,-16,
-19,-43,0,0,0,0,0,0,0,0,0,0,0,-1,-4,-17,-17,-6,-6,-13,0,-10,-18,-39,-46,-550,0,
0,0,0,0,-2,0,0,0,0,0,0]} 1. e4 {[%emt 0:00:07]} c5 {[%emt 0:00:07]} 2. Nf3 {
[%emt 0:00:17]} d6 {[%emt 0:00:06]} 3. Bb5+ {[%emt 0:00:27]} Nd7 {[%emt 0:00:
00]} 4. c4 {[%emt 0:00:33]} Ngf6 {[%emt 0:01:44]} 5. Nc3 {[%emt 0:00:18]} g6 {
[%emt 0:00:35]} 6. h3 {[%emt 0:01:27] B51: Sicilian: Moscow Variation (3 Bb5+)
without 3...Bd7.} Bg7 {[%emt 0:00:12]} 7. d3 {[%emt 0:00:22]} O-O {[%emt 0:00:
00]} 8. Ba4 {[%emt 0:00:24]} Nb8 {[%emt 0:04:01] [#]} 9. O-O $146 {[%emt 0:00:
00]} ({Predecessor:} 9. Be3 Bd7 10. Bb3 Nc6 11. O-O e5 12. Ba4 Ne8 13. Nh2 Nc7
14. f4 f5 15. fxe5 Nxe5 16. Bxd7 Qxd7 {½-½ (36) Prusikin,M (2522)-Dragnev,V 
(2550) Germany 2021}) 9... Bd7 {[%emt 0:00:41]} 10. Bxd7 {[%emt 0:00:56]} Nfxd7
{[%emt 0:00:05]} 11. d4 {[%emt 0:02:10]} Nc6 {[%emt 0:00:21]} 12. Be3 {[%emt 0:
00:00]} Rc8 {[%emt 0:00:06]} 13. d5 {[%emt 0:06:57]} Nd4 {[%emt 0:01:32]} 14.
Nxd4 {[%emt 0:00:47]} cxd4 {[%emt 0:02:44]} 15. Bxd4 {[%emt 0:00:07]} Rxc4 {
[%emt 0:01:34]} 16. Bxg7 {[%emt 0:00:24]} Kxg7 {[%emt 0:00:16]} 17. Qe2 {
[%emt 0:03:29]} Qc8 {[%emt 0:20:04]} 18. Rac1 {[%emt 0:14:37][%cal Yb2b3]} Nf6
{[%emt 0:32:32][%cal Yf6e4]} 19. Rce1 {[%emt 0:17:58]} Qc5 {[%emt 0:03:39]} 20.
e5 {[%emt 0:02:36]} dxe5 {[%emt 0:12:27]} 21. Qxe5 {[%emt 0:00:21]} b5 {
[%emt 0:00:31][%cal Yb7b5,Yb5b4,Yb4b3]} 22. Qxe7 {[%emt 0:03:14]} b4 {[%emt 0:
01:19]} 23. Qxc5 {[%emt 0:06:00]} Rxc5 {[%emt 0:00:04]} 24. Ne4 {[%emt 0:00:06]
} Rxd5 {[%emt 0:00:21]} 25. Nxf6 {[%emt 0:00:20]} Kxf6 $11 {[%emt 0:00:02]
Endgame KRR-KRR} 26. Re4 {[%emt 0:03:44]} a5 {[%emt 0:04:20]} 27. a3 {[%emt 0:
01:58]} b3 {[%emt 0:04:17]} 28. Rfe1 {[%emt 0:00:00]} Rd2 {[%emt 0:02:35]} 29.
R1e2 {[%emt 0:01:09]} Rfd8 {[%emt 0:01:17]} 30. Rf4+ {[%emt 0:06:00]} Kg5 {
[%emt 0:02:23]} 31. Rxd2 {[%emt 0:00:13]} Rxd2 {[%emt 0:00:04] KR-KR} 32. Ra4 {
[%emt 0:00:48] [#]} (32. Rxf7 $15 Rxb2 33. f4+ Kh6 34. a4) 32... Rxb2 $2 {
[%emt 0:00:43]} (32... Kf5 $1 $19 33. g4+ (33. Rxa5+ $2 Ke4 $19) 33... Ke5 34.
f4+ (34. Rxa5+ $2 Kd4 $19) 34... Kd5 35. Rxa5+ Kc4) 33. Rxa5+ {[%emt 0:00:08]
The position is equal.} Kf4 {[%emt 0:00:00]} 34. Ra4+ $1 {[%emt 0:02:41]} Ke5 {
[%emt 0:00:09]} 35. Rb4 $1 {[%emt 0:00:00]} h5 {[%emt 0:00:21]} 36. g4 {
[%emt 0:02:27]} hxg4 {[%emt 0:03:14]} 37. hxg4 {[%emt 0:00:08]} f5 {[%emt 0:00:
38]} 38. gxf5 {[%emt 0:00:08] Weighted Error Value: White=0.19 (very precise) /
Black=0.33} 1/2-1/2